bitfinex/quotes_SOLUSD_20240809
["timestamp","ask_amount","ask_price","bid_price","bid_amount"]
[1723165809002,1.54849402,161.48,161.4,16.527]
[1723165809524,6.1945,161.44,161.4,16.527]
[1723165809837,6.1934,161.47,161.41,6.1953]
[1723165810399,6.1926,161.49,161.42,40.50361599]
[1723165810614,6.1929,161.48,161.42,34.30861599]
[1723165810922,6.1929,161.48,161.43,1.23855151]
[1723165811223,6.1931,161.47,161.42,33.07]
[1723165811520,6.1931,161.47,161.4,16.527]
[1723165811521,33.07,161.51,161.4,49.597]
[1723165811827,6.1939,161.45,161.41,45.0]
[1723165811999,33.07,161.51,161.42,6.1948]
[1723165812318,6.1931,161.47,161.43,46.23858847]
[1723165812532,6.1312,161.57,161.44,33.07]
[1723165812822,6.1312,161.57,161.43,1.23858847]
[1723165812823,39.2012,161.57,161.46,48.5529]
[1723165813031,39.2012,161.57,161.47,45.0]
[1723165813328,33.07,161.55,161.45,45.0]
[1723165813535,33.07,161.51,161.4,49.597]
[1723165813715,33.07,161.53,161.41,65.0]
[1723165813923,15.4794,161.51,161.42,7.43344479]
[1723165814128,15.4794,161.51,161.43,45.0]
[1723165814439,48.5494,161.51,161.41,15.4882]
[1723165814617,48.5494,161.51,161.42,52.43356273]
[1723165814814,15.4794,161.51,161.42,51.1949]
[1723165815438,15.4794,161.51,161.42,45.0]
[1723165815623,6.1934,161.47,161.42,45.0]
[1723165815830,15.4794,161.51,161.4,49.597]
[1723165816040,6.1947,161.43,161.4,16.527]
[1723165816215,33.07,161.47,161.4,16.527]
[1723165816410,34.61877289,161.47,161.38,6.5127]
[1723165816612,6.1954,161.41,161.38,6.5127]
[1723165816834,48.5552,161.45,161.35,15.921]
[1723165817541,6.6004,161.48,161.38,33.07]
[1723165817835,6.1938,161.45,161.39,7.43462935]
[1723165818042,6.1923,161.49,161.42,33.07]
[1723165818214,6.1923,161.49,161.43,46.23854973]
[1723165818427,6.1923,161.49,161.43,52.43274973]
[1723165818615,48.5475,161.53,161.44,39.264]
[1723165818616,6.1919,161.51,161.44,39.264]
[1723165818816,257.0,161.54,161.45,46.23844931]
[1723165819040,257.0,161.54,161.46,1.23835471]
[1723165819339,6.1923,161.49,161.45,45.0]
[1723165819640,6.1927,161.48,161.45,45.0]
[1723165819836,6.1923,161.5,161.45,45.0]
[1723165820335,6.1923,161.5,161.46,1.23847799]
[1723165820541,6.1916,161.51,161.46,1.23847799]
[1723165820754,41.95279954,161.57,161.46,49.79197799]
[1723165820958,55.049857,161.59,161.49,15.4804]
[1723165821121,39.531257,161.59,161.5,1.23810121]
[1723165821449,6.1912,161.52,161.46,54.7467]
[1723165821616,6.1912,161.52,161.47,45.0]
[1723165821817,6.1908,161.53,161.48,1.23822667]
[1723165822018,50.95533133,161.59,161.49,7.43039261]
[1723165822229,6.1903,161.55,161.5,45.0]
[1723165822446,50.95533133,161.59,161.5,45.0]
[1723165822752,6.1905,161.54,161.49,45.0]
[1723165822953,257.0,161.61,161.52,6.1911]
[1723165823126,6.1885,161.59,161.54,6.1903]
[1723165823320,6.1881,161.6,161.55,1.23770759]
[1723165823944,6.1886,161.59,161.53,6.1904]
[1723165824248,6.1886,161.59,161.54,85.58710418]
[1723165824428,6.1886,161.59,161.55,1.23769894]
[1723165825150,6.1886,161.59,161.55,16.75159894]
[1723165825360,6.1886,161.59,161.56,45.0]
[1723165825638,15.4667,161.64,161.57,1.23764673]
[1723165825639,6.188,161.61,161.57,1.23764673]
[1723165825830,6.1881,161.6,161.58,1.23761889]
[1723165826447,6.1881,161.6,161.57,1.23760805]
[1723165826751,6.1881,161.6,161.58,1.23760624]
[1723165826917,6.1881,161.6,161.56,46.23760624]
[1723165827344,33.07,161.66,161.56,46.23760624]
[1723165827534,6.1869,161.64,161.58,33.07]
[1723165827733,6.1862,161.65,161.59,46.23739769]
[1723165827932,6.1862,161.65,161.6,33.07]
[1723165828252,257.0,161.69,161.64,39.2746]
[1723165828550,15.4558,161.76,161.64,39.2746]
[1723165828551,6.1846,161.7,161.65,46.23691412]
[1723165828720,6.1847,161.69,161.65,46.23691412]
[1723165829448,306.1479,161.79,161.68,33.07]
[1723165829626,306.1479,161.79,161.69,46.2366144]
[1723165829627,33.07,161.79,161.69,46.2366144]
[1723165829826,6.1834,161.73,161.69,46.2366144]
[1723165830034,6.1836,161.72,161.69,46.2366144]
[1723165830232,6.1836,161.72,161.69,46.23660032]
[1723165830848,6.1831,161.73,161.69,46.23660032]
[1723165831534,15.448,161.84,161.74,15.9945]
[1723165831737,15.448,161.84,161.75,79.3059829]
[1723165832036,15.448,161.84,161.75,45.0]
[1723165832647,15.448,161.84,161.76,1.23605547]
[1723165832851,17.83600558,161.88,161.75,78.07]
[1723165833052,272.44,161.92,161.77,39.2516]
[1723165833226,39.6013,161.9,161.77,99.3057562]
[1723165833427,33.07,161.88,161.78,45.0]
[1723165833646,33.07,161.86,161.78,45.0]
[1723165834038,6.1799,161.82,161.78,45.0]
[1723165834237,15.4432,161.89,161.78,45.0]
[1723165834454,6.1797,161.82,161.78,45.0]
[1723165834630,6.1805,161.8,161.78,45.0]
[1723165834831,33.07,161.85,161.74,15.9945]
[1723165835249,6.182,161.76,161.74,15.9945]
[1723165835553,5.682,161.76,161.74,15.9945]
[1723165835733,6.1815,161.78,161.74,15.9945]
[1723165836128,6.1817,161.77,161.74,15.9945]
[1723165836328,33.07,161.83,161.74,15.9945]
[1723165836329,6.182,161.76,161.74,15.9945]
[1723165836754,6.184,161.71,161.69,23.224]
[1723165837049,33.07,161.77,161.69,23.224]
[1723165837248,6.1835,161.72,161.69,23.224]
[1723165837455,6.1831,161.73,161.69,23.224]
[1723165837753,6.1836,161.72,161.69,23.224]
[1723165837953,33.07,161.77,161.69,23.224]
[1723165838459,6.1842,161.7,161.69,16.5664]
[1723165838666,33.07,161.73,161.65,6.6576]
[1723165838954,6.1858,161.66,161.65,6.6576]
[1723165839154,6.1849,161.69,161.65,6.6576]
[1723165839333,15.4595,161.72,161.65,6.6576]
[1723165839528,6.1858,161.66,161.63,16.5664]
[1723165839728,33.07,161.71,161.63,16.5664]
[1723165839729,6.1863,161.65,161.63,16.5664]
[1723165839928,33.07,161.69,161.61,6.5728]
[1723165840261,1.54636344,161.7,161.57,16.6355]
[1723165840262,33.07,161.66,161.57,16.6355]
[1723165840552,33.07,161.64,161.57,16.6355]
[1723165840967,15.4686,161.62,161.55,6.5728]
[1723165841139,6.1881,161.61,161.55,40.88031974]
[1723165841450,30.9316,161.65,161.55,40.88031974]
[1723165841663,15.4676,161.63,161.55,40.88031974]
[1723165841834,15.4676,161.63,161.55,7.81031974]
[1723165842034,15.4676,161.63,161.55,6.5728]
[1723165842249,15.4676,161.63,161.52,16.6355]
[1723165842428,15.4676,161.63,161.5,6.2612]
[1723165842429,6.1912,161.52,161.5,6.2612]
[1723165842635,6.1915,161.51,161.5,6.2612]
[1723165842864,6.1915,161.51,161.47,15.1193]
[1723165843029,6.1913,161.52,161.47,15.1193]
[1723165843231,6.1908,161.53,161.47,15.1193]
[1723165843564,6.1912,161.52,161.47,15.1193]
[1723165843738,15.4762,161.54,161.47,15.1193]
[1723165843969,6.1927,161.48,161.47,15.1193]
[1723165844190,15.4762,161.54,161.45,6.2612]
[1723165844395,15.4762,161.54,161.46,1.23826151]
[1723165844559,6.1915,161.51,161.46,1.23826151]
[1723165845361,6.1912,161.52,161.46,1.23826151]
[1723165845667,6.1916,161.51,161.46,1.23826151]
[1723165845882,36.996,161.6,161.45,6.2612]
[1723165845883,15.4752,161.55,161.45,6.2612]
[1723165846194,6.1934,161.46,161.45,6.2612]
[1723165846365,1.54812966,161.55,161.41,21.87969364]
[1723165846693,40.5,161.53,161.41,15.4191]
[1723165847387,15.4809,161.49,161.41,15.4191]
[1723165847760,6.1938,161.45,161.41,15.4191]
[1723165847955,6.1938,161.45,161.42,1.23865392]
[1723165848156,6.1938,161.45,161.41,15.4191]
[1723165848388,15.4809,161.49,161.41,15.4191]
[1723165848601,6.1944,161.44,161.41,15.4191]
[1723165849163,15.4809,161.49,161.41,15.4191]
[1723165849380,6.1943,161.44,161.41,15.4191]
[1723165849891,6.1944,161.44,161.41,15.4191]
[1723165850073,6.1946,161.43,161.4,7.42787683]
[1723165850269,15.484,161.46,161.38,0.829037]
[1723165850472,6.1958,161.4,161.38,0.829037]
[1723165850691,6.1961,161.39,161.38,0.829037]
[1723165850860,6.1958,161.4,161.38,0.829037]
[1723165851061,6.1952,161.42,161.38,0.829037]
[1723165851970,6.1954,161.41,161.38,0.829037]
[1723165852307,6.1961,161.39,161.38,0.829037]
[1723165852469,6.1958,161.4,161.38,0.829037]
[1723165853676,6.1961,161.39,161.38,0.829037]
[1723165857705,40.5,161.47,161.38,0.829037]
[1723165858206,6.1956,161.41,161.38,0.829037]
[1723165858417,6.195,161.43,161.38,0.829037]
[1723165859808,15.4825,161.48,161.38,0.829037]
[1723165859809,6.1951,161.42,161.38,0.829037]
[1723165860010,15.4847,161.45,161.38,0.829037]
[1723165860204,6.1961,161.39,161.38,0.829037]
[1723165861486,6.195,161.42,161.38,0.829037]
[1723165861689,15.4845,161.46,161.38,0.829037]
[1723165861916,6.1961,161.39,161.38,0.829037]
[1723165862414,55.9835,161.47,161.38,0.829037]
[1723165862638,6.1957,161.41,161.38,0.829037]
[1723165862794,6.1946,161.43,161.38,0.829037]
[1723165862993,62.44606292,161.5,161.39,1.2389277]
[1723165863205,62.44606292,161.5,161.38,0.829037]
[1723165863206,6.1946,161.43,161.4,1.23882526]
[1723165863407,62.44606292,161.5,161.4,1.23882526]
[1723165863620,6.1946,161.44,161.4,1.23882526]
[1723165864117,21.94606292,161.5,161.38,0.829037]
[1723165864118,33.2,161.46,161.38,0.829037]
[1723165864804,6.1961,161.4,161.38,0.829037]
[1723165865118,6.1961,161.39,161.38,0.829037]
[1723165865418,6.1956,161.41,161.38,0.829037]
[1723165865722,48.6857,161.44,161.38,0.829037]
[1723165866121,6.1961,161.39,161.38,0.829037]
[1723165867205,6.1954,161.41,161.38,0.829037]
[1723165867629,6.1959,161.4,161.38,0.829037]
[1723165869036,6.1954,161.41,161.38,0.829037]
[1723165870437,48.6852,161.45,161.38,0.829037]
[1723165870438,6.1961,161.39,161.38,0.829037]
[1723165871231,6.1958,161.4,161.38,0.829037]
[1723165871934,6.1961,161.39,161.38,0.829037]
[1723165873339,6.1957,161.4,161.38,0.829037]
[1723165873509,6.1949,161.43,161.38,0.829037]
[1723165873710,6.1961,161.39,161.38,0.829037]
[1723165874726,6.195,161.42,161.38,0.829037]
[1723165875158,33.2,161.45,161.38,0.829037]
[1723165875434,33.2,161.43,161.38,0.829037]
[1723165875633,6.1961,161.39,161.38,0.829037]
[1723165875838,39.3961,161.39,161.38,0.829037]
[1723165877321,6.1961,161.39,161.38,0.829037]
[1723165878011,39.3961,161.39,161.38,0.829037]
[1723165880839,6.1992,161.31,161.3,6.5289]
[1723165881142,6.1992,161.31,161.26,6.4708]
[1723165881562,6.2007,161.28,161.26,6.4708]
[1723165881927,6.2007,161.28,161.24,15.7628]
[1723165882123,6.2007,161.28,161.22,22.351637]
[1723165882124,33.2,161.29,161.22,6.845037]
[1723165882323,6.2023,161.23,161.22,0.829037]
[1723165882529,6.2015,161.26,161.22,0.829037]
[1723165882757,6.2012,161.26,161.23,1.24018979]
[1723165883159,6.2016,161.25,161.22,0.829037]
[1723165883455,33.2,161.29,161.22,0.829037]
[1723165883662,6.2015,161.25,161.22,0.829037]
[1723165884331,6.202,161.24,161.22,0.829037]
[1723165884677,33.2,161.29,161.22,0.829037]
[1723165885657,6.2008,161.27,161.23,1.24024663]
[1723165885832,6.2008,161.27,161.22,0.829037]
[1723165885833,6.2008,161.27,161.24,1.24011826]
[1723165886252,6.2008,161.27,161.23,1.24012519]
[1723165886459,6.47079339,161.34,161.23,34.44012519]
[1723165886760,6.1984,161.34,161.27,39.4006]
[1723165886944,6.1985,161.33,161.28,46.23965107]
[1723165887145,15.4922,161.38,161.29,15.3571]
[1723165887457,6.1981,161.34,161.3,46.23960361]
[1723165887636,15.4922,161.38,161.3,46.23960361]
[1723165887833,33.2,161.41,161.3,46.23960361]
[1723165888036,15.4882,161.42,161.3,46.23960361]
[1723165888037,6.1965,161.39,161.32,6.1985]
[1723165888247,6.1965,161.39,161.33,85.63766751]
[1723165888450,15.8367,161.51,161.33,45.0]
[1723165888451,6.198,161.34,161.33,45.0]
[1723165888838,6.1985,161.33,161.29,15.3571]
[1723165889045,6.1988,161.32,161.3,45.0]
[1723165889239,6.1984,161.34,161.3,45.0]
[1723165889442,6.1976,161.36,161.3,51.1996]
[1723165889643,6.1969,161.37,161.31,7.43841532]
[1723165889878,6.1969,161.37,161.32,45.0]
[1723165890178,30.9719,161.44,161.32,51.1988]
[1723165890179,6.1966,161.38,161.32,51.1988]
[1723165890340,6.1966,161.38,161.33,1.23930256]
[1723165890739,6.1937,161.46,161.39,6.196]
[1723165890960,6.5454,161.52,161.4,52.43451713]
[1723165890961,33.2,161.5,161.4,52.43451713]
[1723165891174,6.1927,161.48,161.41,39.3952]
[1723165891341,33.2,161.52,161.42,46.23851245]
[1723165891342,6.1925,161.49,161.42,46.23851245]
[1723165891665,48.6191,161.56,161.45,33.2]
[1723165891867,6.1915,161.52,161.46,46.23827563]
[1723165892085,48.6764,161.54,161.46,46.23827563]
[1723165892247,6.1931,161.47,161.45,45.0]
[1723165892442,6.1934,161.46,161.45,45.0]
[1723165892644,6.1934,161.46,161.4,7.66287749]
[1723165892841,6.1931,161.47,161.41,45.0]
[1723165893063,6.193,161.48,161.41,45.0]
[1723165893359,6.1923,161.49,161.42,1.2385298]
[1723165893544,6.1919,161.5,161.43,34.43842667]
[1723165893857,6.1919,161.5,161.44,45.0]
[1723165894058,6.1924,161.49,161.45,1.23830643]
[1723165894277,6.1923,161.49,161.44,46.23835276]
[1723165895377,33.2,161.5,161.4,6.4243]
[1723165895741,33.2,161.46,161.4,6.4243]
[1723165896662,6.1945,161.44,161.4,7.66311889]
[1723165896860,6.1943,161.44,161.4,7.66311889]
[1723165897063,6.1943,161.44,161.41,45.0]
[1723165897264,6.1948,161.43,161.41,45.0]
[1723165897754,33.2,161.48,161.41,45.0]
[1723165897954,6.1946,161.43,161.41,45.0]
[1723165898195,33.2,161.48,161.35,6.6299]
[1723165898196,33.2,161.44,161.35,6.6299]
[1723165898356,1.54881255,161.43,161.35,6.6299]
[1723165898685,6.1961,161.4,161.35,6.6299]
[1723165898986,33.2,161.44,161.35,12.8274]
[1723165899493,33.2,161.46,161.35,41.06886127]
[1723165899780,6.1942,161.44,161.38,15.4904]
[1723165899974,6.1942,161.44,161.39,45.0]
[1723165900359,6.1947,161.43,161.39,45.0]
[1723165900757,6.1944,161.44,161.4,1.23889732]
[1723165901359,6.1944,161.44,161.39,45.0]
[1723165901785,33.2,161.47,161.39,45.0]
[1723165902080,6.1965,161.38,161.35,6.6299]
[1723165902253,33.2,161.43,161.35,6.6299]
[1723165902459,6.1966,161.38,161.35,6.6299]
[1723165902679,1.548963,161.42,161.35,6.6299]
[1723165902892,6.1969,161.37,161.35,6.6299]
[1723165903186,6.1973,161.36,161.35,6.6299]
[1723165903683,6.198,161.34,161.31,6.4771]
[1723165903886,6.1986,161.33,161.31,6.4771]
[1723165904287,48.6945,161.35,161.23,54.9527]
[1723165904496,6.2007,161.28,161.23,21.7527]
[1723165905165,6.2008,161.27,161.23,21.7527]
[1723165905372,33.2,161.33,161.23,21.7527]
[1723165905778,6.1996,161.3,161.24,1.23992422]
[1723165905987,6.1996,161.3,161.24,6.2019]
[1723165906160,6.1996,161.3,161.23,27.955]
[1723165906360,6.1996,161.3,161.24,1.23995165]
[1723165906567,6.1996,161.3,161.24,7.44175165]
[1723165906762,6.1996,161.3,161.24,7.44164855]
[1723165907063,56.1436,161.36,161.23,27.9549]
[1723165907281,56.1436,161.36,161.24,45.0]
[1723165907484,6.1996,161.3,161.24,46.23992536]
[1723165907877,56.1436,161.36,161.23,21.7527]
[1723165908263,6.1998,161.3,161.24,1.24006663]
[1723165908667,6.1992,161.31,161.24,7.44196663]
[1723165908877,6.46978195,161.37,161.25,15.5037]
[1723165909088,40.65,161.39,161.26,1.23962392]
[1723165909266,40.65,161.39,161.26,46.23961665]
[1723165909585,6.1992,161.31,161.26,45.0]
[1723165910389,6.1997,161.3,161.26,45.0]
[1723165911164,6.1992,161.31,161.26,45.0]
[1723165911370,15.4924,161.37,161.26,45.0]
[1723165911371,6.1996,161.3,161.26,45.0]
[1723165911790,6.2004,161.28,161.23,21.7527]
[1723165912087,6.2007,161.27,161.23,21.7527]
[1723165912293,15.4953,161.34,161.23,21.7527]
[1723165912294,6.2003,161.29,161.23,21.7527]
[1723165912666,6.2018,161.25,161.23,21.7527]
[1723165912871,6.2018,161.25,161.23,15.1441]
[1723165913085,6.2019,161.24,161.22,0.829037]
[1723165913774,15.4982,161.31,161.22,0.829037]
[1723165913971,6.2008,161.27,161.22,0.829037]
[1723165914679,15.4982,161.31,161.22,0.829037]
[1723165915086,20.0,161.3,161.22,0.829037]
[1723165915394,6.2023,161.23,161.22,0.829037]
[1723165915889,20.0,161.3,161.22,0.829037]
[1723165916093,35.4981,161.31,161.22,0.829037]
[1723165916599,6.1999,161.3,161.23,6.2022]
[1723165916772,6.1999,161.3,161.24,1.23998432]
[1723165916971,6.1999,161.3,161.24,46.23998432]
[1723165917283,6.1999,161.3,161.24,37.98454932]
[1723165917481,6.1994,161.31,161.24,44.18644932]
[1723165917669,15.4981,161.31,161.24,37.98454932]
[1723165918065,15.4952,161.35,161.25,0.71199972]
[1723165918290,6.1996,161.3,161.25,0.71199972]
[1723165918669,6.2007,161.28,161.24,37.98454932]
[1723165918999,6.2012,161.26,161.24,37.98454932]
[1723165919204,6.2015,161.25,161.24,37.98454932]
[1723165919399,15.4974,161.32,161.22,0.829037]
[1723165919400,6.2023,161.23,161.22,0.829037]
[1723165919793,6.2018,161.25,161.22,0.829037]
[1723165920095,6.2011,161.26,161.22,0.829037]
[1723165920297,6.2011,161.26,161.23,0.71205692]
[1723165920495,21.8797,161.34,161.22,0.829037]
[1723165920676,20.0,161.33,161.22,0.829037]
[1723165921087,15.4983,161.31,161.22,0.829037]
[1723165922086,6.2011,161.26,161.22,0.829037]
[1723165922307,6.2015,161.25,161.22,0.829037]
[1723165922681,15.5009,161.29,161.22,0.829037]
[1723165923007,6.2023,161.23,161.22,0.829037]
[1723165923978,6.2019,161.24,161.22,0.829037]
[1723165924179,56.1488,161.31,161.22,0.829037]
[1723165924680,6.2011,161.26,161.22,0.829037]
[1723165924891,6.2008,161.27,161.22,0.829037]
[1723165925094,6.2011,161.26,161.22,46.54115172]
[1723165925385,15.4988,161.31,161.23,45.0]
[1723165925584,15.4988,161.31,161.22,1.54115172]
[1723165926009,6.2015,161.25,161.22,1.54115172]
[1723165926309,6.2011,161.26,161.22,1.54115172]
[1723165927819,21.96181649,161.34,161.25,33.26]
[1723165928110,6.2,161.29,161.26,45.0]
[1723165928301,6.2004,161.28,161.24,6.6377]
[1723165928505,48.7552,161.34,161.25,45.0]
[1723165929604,6.2,161.29,161.26,0.71177438]
[1723165929805,15.4952,161.34,161.28,6.2002]
[1723165929806,6.1982,161.34,161.28,6.2002]
[1723165929991,6.1982,161.34,161.29,45.71061761]
[1723165930189,6.1977,161.36,161.29,78.97061761]
[1723165930415,6.1977,161.36,161.31,33.26]
[1723165930587,15.4904,161.39,161.32,45.0]
[1723165930797,30.9785,161.41,161.28,15.7851]
[1723165930798,33.26,161.38,161.28,15.7851]
[1723165931121,6.2015,161.25,161.24,6.6377]
[1723165931489,6.2015,161.25,161.23,15.7851]
[1723165931814,6.2004,161.28,161.23,15.7851]
[1723165932222,15.4959,161.34,161.25,33.26]
[1723165932430,6.1997,161.3,161.26,0.71134182]
[1723165932910,6.2001,161.29,161.26,45.71134182]
[1723165933113,6.2001,161.29,161.26,45.0]
[1723165933296,6.2001,161.29,161.25,33.97151324]
[1723165933297,15.4981,161.31,161.23,15.7851]
[1723165933496,30.987,161.36,161.22,0.829037]
[1723165933497,6.2019,161.24,161.22,0.829037]
[1723165933701,6.2023,161.23,161.22,0.829037]
[1723165934621,6.2018,161.25,161.22,0.829037]
[1723165934801,48.7611,161.28,161.22,0.829037]
[1723165935001,6.2023,161.23,161.22,0.829037]
[1723165935226,6.2018,161.25,161.22,0.829037]
[1723165935896,6.201,161.27,161.22,0.829037]
[1723165936122,6.2012,161.26,161.22,0.829037]
[1723165936419,79.7539,161.32,161.22,0.829037]
[1723165936420,48.7579,161.32,161.22,46.54123034]
[1723165936607,20.0,161.31,161.22,46.54123034]
[1723165936999,6.2011,161.27,161.22,46.54123034]
[1723165937898,6.2012,161.26,161.22,46.54123034]
[1723165938215,6.2023,161.23,161.22,45.829037]
[1723165938398,6.2023,161.23,161.22,0.829037]
[1723165938600,6.2019,161.24,161.22,0.829037]
[1723165939121,6.2001,161.29,161.23,33.26]
[1723165939329,30.987,161.36,161.25,33.26]
[1723165939533,48.7528,161.37,161.26,45.71119175]
[1723165939719,48.7528,161.37,161.27,0.71101295]
[1723165940034,6.1996,161.31,161.27,0.71101295]
[1723165940232,6.1988,161.32,161.27,33.97101295]
[1723165940524,6.1988,161.32,161.28,45.0]
[1723165940737,6.1981,161.34,161.29,0.71087708]
[1723165940897,6.1973,161.37,161.31,33.26]
[1723165941097,6.1973,161.37,161.32,45.70963479]
[1723165942131,15.4894,161.41,161.32,45.70963479]
[1723165942132,48.7494,161.41,161.32,45.0]
[1723165942435,33.26,161.37,161.27,49.5384]
[1723165942636,6.2,161.29,161.27,16.2784]
[1723165943528,48.7546,161.35,161.27,16.2784]
[1723165943529,6.1992,161.32,161.27,16.98973331]
[1723165944026,6.1992,161.32,161.27,50.24973331]
[1723165944239,15.4946,161.35,161.27,16.2784]
[1723165944536,15.4946,161.35,161.26,6.2575]
[1723165944537,6.2005,161.28,161.26,6.2575]
[1723165944733,6.2,161.29,161.26,6.2575]
[1723165945116,6.2,161.29,161.26,5.7575]
[1723165945817,6.2004,161.28,161.26,5.7575]
[1723165946225,6.2007,161.27,161.26,5.7575]
[1723165946439,6.2007,161.27,161.26,50.7575]
[1723165946633,6.2004,161.28,161.26,50.7575]
[1723165947135,48.7546,161.35,161.26,50.7575]
[1723165947331,6.1993,161.31,161.27,45.71121624]
[1723165947940,6.1997,161.3,161.27,45.0]
[1723165949817,15.4911,161.39,161.27,78.26]
[1723165950153,6.2001,161.29,161.27,45.0]
[1723165951846,15.4936,161.36,161.27,45.0]
[1723165952139,6.1988,161.33,161.28,0.71089136]
[1723165952320,6.199,161.32,161.28,0.71089136]
[1723165952520,6.199,161.32,161.27,78.26]
[1723165952924,6.199,161.32,161.27,78.97111753]
[1723165953238,6.1992,161.31,161.27,78.97111753]
[1723165953624,6.1992,161.31,161.27,45.71111753]
[1723165954137,6.1992,161.31,161.27,37.71111753]
[1723165954939,6.1988,161.32,161.27,37.71111753]
[1723165955529,257.0,161.42,161.31,33.26]
[1723165955530,15.4899,161.4,161.31,33.26]
[1723165955717,6.1965,161.39,161.33,33.26]
[1723165955922,6.1967,161.38,161.34,0.7095287]
[1723165956242,15.4895,161.4,161.31,33.26]
[1723165956438,15.4895,161.4,161.29,48.9177]
[1723165956646,6.1981,161.34,161.29,48.9177]
[1723165957036,6.1981,161.34,161.29,49.62822815]
[1723165957429,6.1981,161.34,161.3,0.71047565]
[1723165958345,6.1981,161.34,161.29,48.9177]
[1723165958548,6.1981,161.34,161.3,45.71036579]
[1723165958851,15.4895,161.4,161.3,45.71036579]
[1723165959065,15.4895,161.4,161.3,51.90996579]
[1723165960151,6.1973,161.36,161.3,51.90996579]
[1723165960654,48.7466,161.43,161.33,33.26]
[1723165960826,6.1959,161.4,161.35,33.26]
[1723165961027,6.1959,161.4,161.36,45.70897566]
[1723165961254,64.7601,161.47,161.37,33.26]
[1723165961255,15.4836,161.47,161.37,33.26]
[1723165961459,15.4836,161.47,161.38,45.70842986]
[1723165962952,6.1954,161.41,161.38,45.70842986]
[1723165963660,6.1942,161.44,161.39,49.1249]
[1723165963866,6.1942,161.44,161.4,45.7080561]
[1723165964464,6.1946,161.43,161.4,45.7080561]
[1723165965246,6.1943,161.44,161.4,45.7080561]
[1723165965747,6.195,161.42,161.4,45.0]
[1723165965942,15.4826,161.48,161.4,45.0]
[1723165966145,6.1961,161.4,161.36,6.33]
[1723165966449,6.1961,161.4,161.37,45.0]
[1723165966965,6.1954,161.41,161.37,45.0]
[1723165967260,6.1946,161.43,161.37,84.4568]
[1723165967474,6.1946,161.43,161.38,0.70864018]
[1723165968158,6.194,161.45,161.41,33.26]
[1723165968366,24.812805,161.6,161.42,45.70768393]
[1723165968367,6.1928,161.48,161.42,45.70768393]
[1723165968547,21.94433018,161.53,161.44,6.1942]
[1723165968744,21.94433018,161.53,161.43,33.26]
[1723165969154,21.94433018,161.53,161.44,45.0]
[1723165969345,6.1928,161.48,161.44,45.0]
[1723165969554,6.1923,161.49,161.44,45.0]
[1723165970161,21.94433018,161.53,161.44,45.0]
[1723165970472,6.1935,161.46,161.41,48.748]
[1723165970649,6.1939,161.45,161.41,33.26]
[1723165970971,6.1919,161.5,161.44,6.1941]
[1723165971143,6.1919,161.5,161.45,0.70684863]
[1723165971343,6.1923,161.49,161.45,0.70684863]
[1723165971648,6.1923,161.49,161.45,22.28204863]
[1723165972355,6.192,161.5,161.45,55.54204863]
[1723165972558,6.1923,161.49,161.45,55.54204863]
[1723165973684,6.192,161.5,161.45,55.54204863]
[1723165973841,46.4184,161.58,161.47,33.26]
[1723165974153,15.4728,161.58,161.49,33.26]
[1723165974354,15.4693,161.61,161.53,33.26]
[1723165974561,6.46480072,161.59,161.55,33.26]
[1723165974764,6.1886,161.59,161.56,0.70457796]